fUSD/lending_fUSD_20241106
["ID","MTS","AMOUNT","RATE_DAILY","PERIOD"]
[341486253,1730921465071,-730.33,0.00027945,2]
[341486254,1730921465081,-594.41448236,0.00027945,2]
[341486255,1730921465090,-500.0,0.00027945,2]
[341486256,1730921465099,-500.0,0.00027945,2]
[341486257,1730921465108,-1075.17,0.00027945,2]
[341486258,1730921465117,-500.0,0.00027945,2]
[341486259,1730921465126,-500.0,0.00027945,2]
[341486260,1730921465135,-500.0,0.00027945,2]
[341486261,1730921465144,-1512.17,0.00027945,2]
[341486262,1730921465152,-500.0,0.00027945,2]
[341486263,1730921465162,-500.0,0.00027945,2]
[341486264,1730921465171,-500.0,0.00027945,2]
[341486265,1730921465179,-500.0,0.00027945,2]
[341486266,1730921465188,-500.0,0.00027945,2]
[341486267,1730921465197,-500.0,0.00027945,2]
[341486268,1730921465207,-500.0,0.00027945,2]
[341486269,1730921465215,-500.0,0.00027945,2]
[341486270,1730921465224,-500.0,0.00027945,2]
[341486271,1730921465233,-500.0,0.00027945,2]
[341486272,1730921465242,-500.0,0.00027945,2]
[341486273,1730921465251,-500.0,0.00027945,2]
[341486274,1730921465260,-521.53,0.00027945,2]
[341486275,1730921465271,-500.0,0.00027945,2]
[341486276,1730921465280,-500.0,0.00027945,2]
[341486277,1730921465288,-500.0,0.00027945,2]
[341486278,1730921465297,-500.0,0.00027945,2]
[341486279,1730921465307,-500.0,0.00027945,2]
[341486280,1730921465316,-500.0,0.00027945,2]
[341486281,1730921465325,-500.0,0.00027945,2]
[341486282,1730921465334,-500.0,0.00027945,2]
[341486283,1730921465344,-525.78,0.00027945,2]
[341486284,1730921465353,-500.0,0.00027945,2]
[341486285,1730921465363,-500.0,0.00027945,2]
[341486286,1730921465373,-501.22,0.00027945,2]
[341486287,1730921465382,-500.0,0.00027945,2]
[341486288,1730921465392,-500.0,0.00027945,2]
[341486289,1730921465403,-500.0,0.00027945,2]
[341486290,1730921465414,-500.0,0.00027945,2]
[341486291,1730921465424,-500.0,0.00027945,2]
[341486292,1730921465435,-1083.31,0.00027945,2]
[341486293,1730921465447,-500.0,0.00027945,2]
[341486294,1730921465457,-500.0,0.00027945,2]
[341486295,1730921465466,-772.37,0.00027945,2]
[341486296,1730921465475,-623.55,0.00027945,2]
[341486297,1730921465485,-912.55,0.00027945,2]
[341486298,1730921465494,-282.95,0.00027945,2]
[341486299,1730921465504,-551.01,0.00027945,2]
[341486300,1730921465514,-543.09,0.00027945,2]
[341486301,1730921465525,-500.0,0.00027945,2]
[341486302,1730921465534,-500.0,0.00027945,2]
[341486303,1730921465543,-500.0,0.00027945,2]
[341486304,1730921465553,-500.0,0.00027945,2]
[341486305,1730921465563,-500.0,0.00027945,2]
[341486306,1730921465572,-500.0,0.00027945,2]
[341486307,1730921465583,-500.0,0.00027945,2]
[341486308,1730921465592,-703.72,0.00027945,2]
[341486309,1730921465602,-500.0,0.00027945,2]
[341486310,1730921465612,-500.0,0.00027945,2]
[341486311,1730921465622,-572.0,0.00027945,2]
[341486312,1730921465631,-500.0,0.00027945,2]
[341486313,1730921465642,-1366.15,0.00027945,2]
[341486314,1730921465662,-500.0,0.00027945,2]
[341486315,1730921465673,-500.0,0.00027945,2]
[341486316,1730921465682,-500.0,0.00027945,2]
[341486317,1730921465692,-734.53,0.00027945,2]
[341486318,1730921465702,-500.0,0.00027945,2]
[341486319,1730921465711,-969.78,0.00027945,2]
[341486320,1730921465721,-500.0,0.00027945,2]
[341486321,1730921465730,-500.0,0.00027945,2]
[341486322,1730921465740,-500.0,0.00027945,2]
[341486323,1730921465750,-500.0,0.00027945,2]
[341486324,1730921465759,-1316.29,0.00027945,2]
[341486325,1730921465771,-1901.71,0.00027945,2]
[341486326,1730921465780,-500.0,0.00027945,2]
[341486327,1730921465789,-797.29,0.00027945,2]
[341486328,1730921465799,-500.0,0.00027945,2]
[341486329,1730921465808,-500.0,0.00027945,2]
[341486330,1730921465818,-500.0,0.00027945,2]
[341486331,1730921465827,-500.0,0.00027945,2]
[341486332,1730921465836,-500.0,0.00027945,2]
[341486333,1730921465845,-500.0,0.00027945,2]
[341486334,1730921465854,-500.0,0.00027945,2]
[341486335,1730921465864,-582.05,0.00027945,2]
[341486336,1730921465873,-500.0,0.00027945,2]
[341486337,1730921465882,-2129.44,0.00027945,2]
[341486338,1730921465892,-500.0,0.00027945,2]
[341486339,1730921465902,-515.69,0.00027945,2]
[341486340,1730921465912,-500.0,0.00027945,2]
[341486341,1730921465922,-1381.56,0.00027945,2]
[341486342,1730921465931,-500.0,0.00027945,2]
[341486343,1730921465940,-500.0,0.00027945,2]
[341486344,1730921465949,-874.51,0.00027945,2]
[341486345,1730921465959,-500.0,0.00027945,2]
[341486346,1730921465971,-524.69,0.00027945,2]
[341486347,1730921465980,-1199.16,0.00027945,2]
[341486348,1730921465989,-1456.34,0.00027945,2]
[341486349,1730921465998,-500.0,0.00027945,2]
[341486350,1730921466007,-500.0,0.00027945,2]
[341486351,1730921466019,-648.55,0.00027945,2]
[341486352,1730921466029,-516.74,0.00027945,2]
[341486353,1730921466038,-500.0,0.00027945,2]
[341486354,1730921466049,-500.0,0.00027945,2]
[341486355,1730921466058,-500.0,0.00027945,2]
[341486356,1730921466068,-500.0,0.00027945,2]
[341486357,1730921466077,-500.0,0.00027945,2]
[341486358,1730921466086,-1361.75,0.00027945,2]
[341486359,1730921466096,-1297.01,0.00027945,2]
[341486360,1730921466106,-1976.54,0.00027945,2]
[341486361,1730921466115,-538.59,0.00027945,2]
[341486362,1730921466126,-1292.52,0.00027945,2]
[341486363,1730921466135,-500.0,0.00027945,2]
[341486364,1730921466145,-801.08,0.00027945,2]
[341486365,1730921466155,-500.0,0.00027945,2]
[341486366,1730921466164,-1172.99,0.00027945,2]
[341486367,1730921466173,-352.24269385,0.00027945,2]
[341486368,1730921466183,-1204.1,0.00027945,2]
[341486369,1730921466194,-500.0,0.00027945,2]
[341486370,1730921466203,-744.85,0.00027945,2]
[341486371,1730921466213,-500.0,0.00027945,2]
[341486372,1730921466223,-1335.79,0.00027945,2]
[341486373,1730921466233,-696.64,0.00027945,2]
[341486374,1730921466243,-1045.64,0.00027945,2]
[341486375,1730921466254,-679.82,0.00027945,2]
[341486376,1730921466265,-500.0,0.00027945,2]
[341486377,1730921466278,-500.0,0.00027945,2]
[341486378,1730921466289,-376.70719488,0.00027945,2]
[341486379,1730921466299,-1042.62,0.00027945,2]
[341486380,1730921466309,-500.0,0.00027945,2]
[341486381,1730921466319,-500.0,0.00027945,2]
[341486382,1730921466330,-500.0,0.00027945,2]
[341486383,1730921466340,-500.0,0.00027945,2]
[341486384,1730921466350,-500.0,0.00027945,2]
[341486385,1730921466360,-500.0,0.00027945,2]
[341486386,1730921466371,-1098.93,0.00027945,2]
[341486387,1730921466381,-500.0,0.00027945,2]
[341486388,1730921466390,-632.65,0.00027945,2]
[341486389,1730921466400,-500.0,0.00027945,2]
[341486390,1730921466411,-500.0,0.00027945,2]
[341486391,1730921466423,-500.0,0.00027945,2]
[341486392,1730921466436,-500.0,0.00027945,2]
[341486393,1730921466446,-1534.21,0.00027945,2]
[341486394,1730921466455,-961.37,0.00027945,2]
[341486395,1730921466465,-500.0,0.00027945,2]
[341486396,1730921466475,-500.0,0.00027945,2]
[341486397,1730921466485,-500.0,0.00027945,2]
[341486398,1730921466495,-709.21,0.00027945,2]
[341486399,1730921466505,-500.0,0.00027945,2]
[341486400,1730921466514,-500.0,0.00027945,2]
[341486401,1730921466527,-1898.13,0.00027945,2]
[341486402,1730921466537,-500.0,0.00027945,2]
[341486403,1730921466546,-3004.62,0.00027945,2]
[341486404,1730921466558,-500.0,0.00027945,2]
[341486405,1730921466571,-500.0,0.00027945,2]
[341486406,1730921466581,-500.0,0.00027945,2]
[341486407,1730921466591,-1137.09,0.00027945,2]
[341486408,1730921466601,-500.0,0.00027945,2]
[341486409,1730921466611,-500.0,0.00027945,2]
[341486410,1730921466621,-1635.44,0.00027945,2]
[341486411,1730921466631,-500.0,0.00027945,2]
[341486412,1730921466641,-671.47,0.00027945,2]
[341486413,1730921466651,-500.0,0.00027945,2]
[341486414,1730921466660,-537.18,0.00027945,2]
[341486415,1730921466670,-500.0,0.00027945,2]
[341486416,1730921466680,-500.0,0.00027945,2]
[341486417,1730921466690,-500.0,0.00027945,2]
[341486418,1730921466700,-3533.75,0.00027945,2]
[341486419,1730921466710,-500.0,0.00027945,2]
[341486420,1730921466719,-500.0,0.00027945,2]
[341486421,1730921466729,-500.0,0.00027945,2]
[341486422,1730921466740,-604.2,0.00027945,2]
[341486423,1730921466750,-500.0,0.00027945,2]
[341486424,1730921466760,-352.5,0.00027945,2]
[341486425,1730921466777,-520.44,0.00027945,2]
[341486426,1730921466788,-500.0,0.00027945,2]
[341486427,1730921466798,-2264.57,0.00027945,2]
[341486428,1730921466808,-500.0,0.00027945,2]
[341486429,1730921466817,-500.0,0.00027945,2]
[341486430,1730921466827,-500.0,0.00027945,2]
[341486431,1730921466837,-500.0,0.00027945,2]
[341486432,1730921466847,-500.0,0.00027945,2]
[341486433,1730921466857,-465.51503434,0.00027945,2]
[341486434,1730921466867,-500.0,0.00027945,2]
[341486435,1730921466877,-500.0,0.00027945,2]
[341486436,1730921466887,-1056.2,0.00027945,2]
[341486437,1730921466897,-500.0,0.00027945,2]
[341486438,1730921466907,-500.0,0.00027945,2]
[341486439,1730921466916,-690.86,0.00027945,2]
[341486440,1730921466926,-500.0,0.00027945,2]
[341486441,1730921466936,-500.0,0.00027945,2]
[341486442,1730921466946,-500.0,0.00027945,2]
[341486443,1730921466955,-500.0,0.00027945,2]
[341486444,1730921466965,-500.0,0.00027945,2]
[341486445,1730921466980,-500.0,0.00027945,2]
[341486446,1730921466989,-500.0,0.00027945,2]
[341486447,1730921467000,-500.0,0.00027945,2]
[341486448,1730921467010,-500.0,0.00027945,2]
[341486449,1730921467026,-500.0,0.00027945,2]
[341486450,1730921467036,-500.0,0.00027945,2]
[341486451,1730921467046,-500.0,0.00027945,2]
[341486452,1730921467057,-500.0,0.00027945,2]
[341486453,1730921467068,-707.77,0.00027945,2]
[341486454,1730921467078,-500.0,0.00027945,2]
[341486455,1730921467088,-500.0,0.00027945,2]
[341486456,1730921467098,-500.0,0.00027945,2]
[341486457,1730921467108,-2569.21,0.00027945,2]
[341486458,1730921467118,-500.0,0.00027945,2]
[341486459,1730921467128,-2185.26,0.00027945,2]
[341486460,1730921467138,-500.0,0.00027945,2]
[341486461,1730921467148,-500.0,0.00027945,2]
[341486462,1730921467158,-591.78,0.00027945,2]
[341486463,1730921467168,-677.46,0.00027945,2]
[341486464,1730921467178,-500.0,0.00027945,2]
[341486465,1730921467188,-500.0,0.00027945,2]
[341486466,1730921467198,-500.0,0.00027945,2]
[341486467,1730921467208,-500.0,0.00027945,2]
[341486468,1730921467218,-500.0,0.00027945,2]
[341486469,1730921467229,-1027.91,0.00027945,2]
[341486470,1730921467239,-500.0,0.00027945,2]
[341486471,1730921467249,-500.0,0.00027945,2]
[341486472,1730921467260,-1757.89,0.00027945,2]
[341486473,1730921467272,-1116.86,0.00027945,2]
[341486474,1730921467282,-893.13,0.00027945,2]
[341486475,1730921467292,-500.0,0.00027945,2]
[341486476,1730921467303,-502.45058061,0.00027945,2]
[341486477,1730921467313,-500.0,0.00027945,2]
[341486478,1730921467323,-503.86312221,0.00027945,2]
[341486479,1730921467334,-500.0,0.00027945,2]
[341486480,1730921467344,-500.0,0.00027945,2]
[341486481,1730921467354,-280.40784438,0.00027945,2]
[341486482,1730921467365,-598.38,0.00027945,2]
[341486483,1730921467375,-500.0,0.00027945,2]
[341486484,1730921467386,-1020.16,0.00027945,2]
[341486485,1730921467396,-580.72,0.00027945,2]
[341486486,1730921467407,-500.0,0.00027945,2]
[341486487,1730921467418,-500.0,0.00027945,2]
[341486488,1730921467429,-1319.12,0.00027945,2]
[341486489,1730921467439,-500.0,0.00027945,2]
[341486490,1730921467449,-998.08,0.00027945,2]
[341486491,1730921467460,-10922.52,0.00027945,2]
[341486492,1730921467470,-500.0,0.00027945,2]
[341486493,1730921467480,-500.0,0.00027945,2]
[341486494,1730921467490,-704.67,0.00027945,2]
[341486495,1730921467500,-8966.14,0.00027945,2]
[341486496,1730921467510,-502.01,0.00027945,2]
[341486497,1730921467522,-510.58,0.00027945,2]
[341486498,1730921467532,-1483.21,0.00027945,2]
[341486499,1730921467542,-816.23,0.00027945,2]
[341486500,1730921467552,-500.0,0.00027945,2]
[341486501,1730921467562,-505.0,0.00027945,2]
[341486502,1730921467572,-2247.83,0.00027945,2]
[341486503,1730921467582,-500.0,0.00027945,2]
[341486504,1730921467592,-500.0,0.00027945,2]
[341486505,1730921467602,-500.0,0.00027945,2]
[341486506,1730921467612,-500.0,0.00027945,2]
[341486507,1730921467622,-500.0,0.00027945,2]
[341486508,1730921467632,-557.05,0.00027945,2]
[341486509,1730921467642,-500.0,0.00027945,2]
[341486510,1730921467652,-696.88,0.00027945,2]
[341486511,1730921467662,-743.67,0.00027945,2]
[341486512,1730921467672,-500.0,0.00027945,2]
[341486513,1730921467682,-11921.41,0.00027945,2]
[341486514,1730921467692,-3538.22,0.00027945,2]
[341486515,1730921467702,-500.0,0.00027945,2]
[341486516,1730921467712,-500.0,0.00027945,2]
[341486517,1730921467722,-685.62,0.00027945,2]
[341486518,1730921467732,-500.0,0.00027945,2]
[341486519,1730921467742,-500.0,0.00027945,2]
[341486520,1730921467752,-500.0,0.00027945,2]
[341486521,1730921467761,-500.0,0.00027945,2]
[341486522,1730921467773,-3001.37,0.00027945,2]
[341486523,1730921467783,-500.0,0.00027945,2]
[341486524,1730921467792,-362.20263492,0.00027945,2]
[341486525,1730921467802,-500.0,0.00027945,2]
[341486526,1730921467812,-500.0,0.00027945,2]
[341486527,1730921467822,-1287.89,0.00027945,2]
[341486528,1730921467832,-500.0,0.00027945,2]
[341486529,1730921467842,-566.0,0.00027945,2]
[341486530,1730921467852,-974.22,0.00027945,2]
[341486531,1730921467862,-657.75,0.00027945,2]
[341486532,1730921467872,-500.0,0.00027945,2]
[341486533,1730921467882,-668.16,0.00027945,2]
[341486534,1730921467892,-500.0,0.00027945,2]
[341486535,1730921467901,-557.76,0.00027945,2]
[341486536,1730921467911,-500.0,0.00027945,2]
[341486537,1730921467921,-500.0,0.00027945,2]
[341486538,1730921467930,-500.0,0.00027945,2]
[341486539,1730921467940,-558.36,0.00027945,2]
[341486540,1730921467950,-358.79191838,0.00027945,2]
[341486541,1730921467960,-2242.69,0.00027945,2]
[341486542,1730921467972,-2069.35,0.00027945,2]
[341486543,1730921467983,-544.29,0.00027945,2]
[341486544,1730921467993,-2000.0,0.00027945,2]
[341486545,1730921468003,-880.83,0.00027945,2]
[341486546,1730921468012,-500.0,0.00027945,2]
[341486547,1730921468027,-1008.25,0.00027945,2]
[341486548,1730921468038,-500.0,0.00027945,2]
[341486549,1730921468048,-500.0,0.00027945,2]
[341486550,1730921468058,-517.09,0.00027945,2]
[341486551,1730921468068,-500.0,0.00027945,2]
[341486552,1730921468078,-500.0,0.00027945,2]
[341486553,1730921468087,-500.0,0.00027945,2]
[341486554,1730921468097,-500.0,0.00027945,2]
[341486555,1730921468107,-500.0,0.00027945,2]
[341486556,1730921468116,-1109.65,0.00027945,2]
[341486557,1730921468126,-1425.33,0.00027945,2]
[341486558,1730921468137,-500.0,0.00027945,2]
[341486559,1730921468147,-531.08431279,0.00027945,2]
[341486560,1730921468158,-500.0,0.00027945,2]
[341486561,1730921468170,-2335.66,0.00027945,2]
[341486562,1730921468180,-500.0,0.00027945,2]
[341486563,1730921468190,-549.87,0.00027945,2]
[341486564,1730921468200,-1520.67,0.00027945,2]
[341486565,1730921468210,-500.0,0.00027945,2]
[341486566,1730921468220,-500.0,0.00027945,2]
[341486567,1730921468231,-206.49605429,0.00027945,2]
[341486568,1730921468241,-1291.47,0.00027945,2]
[341486569,1730921468251,-500.0,0.00027945,2]
[341486570,1730921468261,-500.0,0.00027945,2]
[341486571,1730921468271,-755.97,0.00027945,2]
[341486572,1730921468283,-1268.14,0.00027945,2]
[341486573,1730921468294,-539.8,0.00027945,2]
[341486574,1730921468305,-500.0,0.00027945,2]
[341486575,1730921468315,-500.0,0.00027945,2]
[341486576,1730921468325,-500.0,0.00027945,2]
[341486577,1730921468335,-500.0,0.00027945,2]
[341486578,1730921468345,-1600.42,0.00027945,2]
[341486579,1730921468356,-697.74,0.00027945,2]
[341486580,1730921468368,-500.0,0.00027945,2]
[341486581,1730921468378,-974.29,0.00027945,2]
[341486582,1730921468388,-1296.46,0.00027945,2]
[341486583,1730921468400,-500.0,0.00027945,2]
[341486584,1730921468410,-610.34,0.00027945,2]
[341486585,1730921468420,-232.058408,0.00027945,2]
[341486586,1730921469193,-1139.22878096,0.00027945,2]
[341486587,1730921469207,-952.47687904,0.00027945,2]
[341486588,1730921469259,-551.665932,0.00027945,2]
[341486589,1730921469270,-500.0,0.00027945,2]
[341486590,1730921469280,-500.0,0.00027945,2]
[341486591,1730921469290,-225.33547956,0.00027945,2]
[341486592,1730921469700,-506.71881552,0.00027397,2]
[341486593,1730921469710,-274.66452044,0.00027945,2]
[341486594,1730921469720,-545.64773817,0.00027945,2]
[341486595,1730921469730,-1035.41,0.00027945,2]
[341486596,1730921469739,-500.0,0.00027945,2]
[341486597,1730921469749,-662.1,0.00027945,2]
[341486598,1730921469759,-606.84,0.00027945,2]
[341486599,1730921469770,-500.0,0.00027945,2]
[341486600,1730921469779,-683.75,0.00027945,2]
[341486601,1730921469789,-2218.86892588,0.00027945,2]
[341486602,1730921469804,-5826.79107412,0.00027945,2]
[341486603,1730921469814,-1000.0,0.00027945,10]
[341486604,1730921469824,-500.0,0.00027945,2]
[341486605,1730921469834,-500.0,0.00027945,2]
[341486606,1730921469843,-4032.26,0.00027945,2]
[341486607,1730921469854,-500.0,0.00027945,2]
[341486608,1730921469864,-500.0,0.00027945,2]
[341486609,1730921469875,-500.0,0.00027945,2]
[341486610,1730921469885,-512.73,0.00027945,2]
[341486611,1730921469896,-208.48894708,0.00027945,2]
[341486612,1730921469906,-500.0,0.00027945,2]
[341486613,1730921469917,-500.0,0.00027945,2]
[341486614,1730921469927,-210.68500087,0.00027945,2]
[341486615,1730921469937,-1468.58,0.00027945,2]
[341486616,1730921469947,-500.0,0.00027945,2]
[341486617,1730921469956,-500.0,0.00027945,2]
[341486618,1730921469967,-863.55,0.00027945,2]
[341486619,1730921469979,-500.0,0.00027945,2]
[341486620,1730921469988,-500.0,0.00027945,2]
[341486621,1730921469997,-500.0,0.00027945,2]
[341486622,1730921470007,-500.0,0.00027945,2]
[341486623,1730921470019,-2446.49,0.00027945,2]
[341486624,1730921470029,-500.0,0.00027945,2]
[341486625,1730921470039,-535.62,0.00027945,2]
[341486626,1730921470049,-500.0,0.00027945,2]
[341486627,1730921470059,-714.66,0.00027945,2]
[341486628,1730921470069,-500.0,0.00027945,2]
[341486629,1730921470080,-622.96,0.00027945,2]
[341486630,1730921470090,-556.44,0.00027945,2]
[341486631,1730921470100,-3547.51,0.00027945,2]
[341486632,1730921470111,-500.0,0.00027945,2]
[341486633,1730921470120,-2384.12,0.00027945,2]
[341486634,1730921470132,-500.0,0.00027945,2]
[341486635,1730921470144,-2870.53,0.00027945,2]
[341486636,1730921470156,-500.0,0.00027945,2]
[341486637,1730921470167,-500.0,0.00027945,2]
[341486638,1730921470176,-500.0,0.00027945,2]
[341486639,1730921470186,-500.0,0.00027945,2]
[341486640,1730921470197,-1031.24,0.00027945,2]
[341486641,1730921470207,-2083.61,0.00027945,2]
[341486642,1730921470216,-500.0,0.00027945,2]
[341486643,1730921470226,-633.2133201,0.00027945,2]
[341486644,1730921470236,-500.0,0.00027945,2]
[341486645,1730921470245,-824.12,0.00027945,2]
[341486646,1730921470255,-500.0,0.00027945,2]
[341486647,1730921470265,-500.0,0.00027945,2]
[341486648,1730921470275,-500.0,0.00027945,2]
[341486649,1730921470284,-2276.97,0.00027945,2]
[341486650,1730921470294,-1191.22,0.00027945,2]
[341486651,1730921470304,-1290.82,0.00027945,2]
[341486652,1730921470315,-570.29,0.00027945,2]
[341486653,1730921470324,-503.8,0.00027945,2]
[341486654,1730921470334,-500.0,0.00027945,2]
[341486655,1730921470343,-500.0,0.00027945,2]
[341486656,1730921470352,-1015.57,0.00027945,2]
[341486657,1730921470362,-500.0,0.00027945,2]
[341486658,1730921470374,-1299.71,0.00027945,2]
[341486659,1730921470383,-500.0,0.00027945,2]
[341486660,1730921470393,-500.0,0.00027945,2]
[341486661,1730921470402,-533.02,0.00027945,2]
[341486662,1730921470412,-848.03,0.00027945,2]
[341486663,1730921470422,-182.03144446,0.00027945,2]
[341486664,1730921470432,-6672.24,0.00027945,2]
[341486665,1730921470442,-1717.61,0.00027945,2]
[341486666,1730921470451,-150.0,0.00027945,2]
[341486667,1730921470461,-595.77,0.00027945,2]
[341486668,1730921470471,-702.7,0.00027945,2]
[341486669,1730921470480,-500.0,0.00027945,2]
[341486670,1730921470490,-500.0,0.00027945,2]
[341486671,1730921470500,-1244.87937801,0.00027945,2]
[341486672,1730921470518,-394.08062199,0.00027945,2]
[341486673,1730921470527,-866.84103496,0.00027945,2]
[341486674,1730921470626,-1013.33896504,0.00027945,2]
[341486675,1730921470635,-686.63,0.00027945,2]
[341486676,1730921470645,-500.0,0.00027945,2]
[341486677,1730921470655,-1342.91,0.00027945,2]
[341486678,1730921470664,-166.67627064,0.00027945,2]
[341486679,1730921470677,-525.77372936,0.00027945,2]
[341486680,1730921470686,-500.0,0.00027945,2]
[341486681,1730921470696,-500.0,0.00027945,2]
[341486682,1730921470705,-809.62,0.00027945,2]
[341486683,1730921470715,-789.64,0.00027945,2]
[341486684,1730921470725,-763.21,0.00027945,2]
[341486685,1730921470734,-796.81,0.00027945,2]
[341486686,1730921470744,-920.01,0.00027945,2]
[341486687,1730921470754,-500.0,0.00027945,2]
[341486688,1730921470763,-3164.8,0.00027945,2]
[341486689,1730921470775,-542.95104994,0.00027945,2]
[341486690,1730921470784,-500.0,0.00027945,2]
[341486691,1730921470794,-705.29,0.00027945,2]
[341486692,1730921470804,-500.0,0.00027945,2]
[341486693,1730921470816,-1016.08,0.00027945,2]
[341486694,1730921470827,-525.61,0.00027945,2]
[341486695,1730921470836,-500.0,0.00027945,2]
[341486696,1730921470847,-500.0,0.00027945,2]
[341486697,1730921470858,-498.58269248,0.00027945,2]
[341486698,1730921470867,-500.0,0.00027945,2]
[341486699,1730921470877,-500.0,0.00027945,2]
[341486700,1730921470980,-589.56,0.00027945,2]
[341486701,1730921470989,-500.0,0.00027945,2]
[341486702,1730921470999,-588.88,0.00027945,2]
[341486703,1730921471008,-2269.06,0.00027945,2]
[341486704,1730921471020,-500.0,0.00027945,2]
[341486705,1730921471029,-500.0,0.00027945,2]
[341486706,1730921471039,-1183.67,0.00027945,2]
[341486707,1730921471051,-1378.1,0.00027945,2]
[341486708,1730921471062,-987.2,0.00027945,2]
[341486709,1730921471071,-1215.89,0.00027945,2]
[341486710,1730921471081,-500.0,0.00027945,2]
[341486711,1730921471090,-500.0,0.00027945,2]
[341486712,1730921471101,-1085.08,0.00027945,2]
[341486713,1730921471110,-583.57,0.00027945,2]
[341486714,1730921471120,-500.0,0.00027945,2]
[341486715,1730921471129,-565.87,0.00027945,2]
[341486716,1730921471140,-2268.83,0.00027945,2]
[341486717,1730921471150,-500.0,0.00027945,2]
[341486718,1730921471161,-2467.89,0.00027945,2]
[341486719,1730921471171,-500.0,0.00027945,2]
[341486720,1730921471181,-999.5,0.00027945,2]
[341486721,1730921471190,-500.0,0.00027945,2]
[341486722,1730921471199,-500.0,0.00027945,2]
[341486723,1730921471209,-500.0,0.00027945,2]
[341486724,1730921471218,-1125.23,0.00027945,2]
[341486725,1730921471227,-500.0,0.00027945,2]
[341486726,1730921471237,-445.6550263,0.00027945,2]
[341486727,1730921471246,-1387.21,0.00027945,2]
[341486728,1730921471255,-404.45625635,0.00027945,2]
[341486729,1730921471265,-500.0,0.00027945,2]
[341486730,1730921471276,-1704.41,0.00027945,2]
[341486731,1730921471286,-500.0,0.00027945,2]
[341486732,1730921471295,-500.0,0.00027945,2]
[341486733,1730921471305,-1680.82,0.00027945,2]
[341486734,1730921471315,-1852.4,0.00027945,2]
[341486735,1730921471325,-500.0,0.00027945,2]
[341486736,1730921471335,-2150.03,0.00027945,2]
[341486737,1730921471345,-500.0,0.00027945,2]
[341486738,1730921471354,-341.09345488,0.00027945,2]
[341486739,1730921471364,-658.13,0.00027945,2]
[341486740,1730921471373,-1103.77,0.00027945,2]
[341486741,1730921471383,-500.0,0.00027945,2]
[341486742,1730921471392,-500.0,0.00027945,2]
[341486743,1730921471402,-811.93,0.00027945,2]
[341486744,1730921471412,-548.54,0.00027945,2]
[341486745,1730921471421,-500.0,0.00027945,2]
[341486746,1730921471430,-1710.85,0.00027945,2]
[341486747,1730921471440,-500.0,0.00027945,2]
[341486748,1730921471450,-528.82,0.00027945,2]
[341486749,1730921471459,-4369.0,0.00027945,2]
[341486750,1730921471469,-500.0,0.00027945,2]
[341486751,1730921471478,-500.0,0.00027945,2]
[341486752,1730921471488,-500.0,0.00027945,2]